Cogmind - Beta 15 @@@ ROGUE MODE // 2025.05.13 @ 03:10:01 Player: Lillith Result: Self-destructed Performance ------------- Evolutions (4) 2000 Regions Visited (5) 1000 Robots Destroyed (28) 140 Value Destroyed (723) 723 Prototype IDs (23) 460 Alien Tech Used (0) 0 Bonus (300) 300 TOTAL SCORE: 4623 Bonus ------- Registered with UFD 300 Cogmind --------- Core Integrity 794/850 Matter 230/300 Energy 1/240 System Corruption 2% Temperature Cool (4) Movement Flying (31) Location -6/Factory Parts ------- > --- POWER (2+1) ------ Nuclear Core > --- PROPULSION (4) --- Nuclear Pulse Thruster Nuclear Pulse Thruster Nuclear Pulse Thruster Nuclear Pulse Thruster > --- UTILITY (7) ------ Medium Storage Unit Advanced Weight Redist. System Deep Structural Scanner Hardened Light Armor Plating Improved Hacking Suite > --- WEAPON (2) ------- Powered Cannon > --- INVENTORY (10) --- Improved Cooling System Energy Well (0) Surveybot 17 Chip Makeshift Light Armor Plating Focal Shield Thermal Defense Suite Improved Shield Generator Ripper Peak State ------------ > --- POWER ------------ Nuclear Core > --- PROPULSION ------- Nuclear Pulse Thruster Nuclear Pulse Thruster Nuclear Pulse Thruster Nuclear Pulse Thruster > --- UTILITY ---------- Improved Cooling System Medium Storage Unit Advanced Weight Redist. System Deep Structural Scanner Hardened Light Armor Plating Makeshift Light Armor Plating Focal Shield > --- WEAPON ----------- Powered Cannon > --- INVENTORY -------- Energy Well Surveybot 17 Chip Improved Shield Generator Ripper [Rating: 62] Favorites ----------- Power Ion Engine Engine Ion Engine Power Core Nuclear Core Propulsion Compact Wheel Wheel Compact Wheel Flight Unit Nuclear Pulse Thruster Utility Small Storage Unit Device Seismic Detector Storage Small Storage Unit Hackware Improved Hacking Suite Protection Hardened Light Armor Plating Weapon Ripper Energy Cannon Subdweller Beam Cannon Ballistic Gun Assault Rifle Ballistic Cannon Light Cannon Special Weapon Junk Cannon Slashing Weapon Ripper Build | -11 -10 -10 -9 -9 -6 ------- Run | Yrd Mat Sub Rec Scr Fac Slots Evolved 8 | . . . . . 8 Power 1 | . . . . . 1 Propulsion 2 | . . . . . 2 Utility 5 | . . . . . 5 Weapon . | . . . . . . Parts Attached 36 | 7 6 6 1 10 6 Power 3 | 1 . 1 . 1 . Engine 2 | 1 . 1 . . . Core 1 | . . . . 1 . Reactor . | . . . . . . Propulsion 12 | 2 3 2 . 3 2 Treads . | . . . . . . Leg . | . . . . . . Wheel 8 | 2 3 2 . 1 . Hover . | . . . . . . Flight 4 | . . . . 2 2 Utility 13 | 2 1 1 1 4 4 Device 6 | 1 1 . . 2 2 Storage 4 | 1 . 1 1 1 . Processor . | . . . . . . Hackware 1 | . . . . . 1 Protection 2 | . . . . 1 1 Artifact . | . . . . . . Weapon 8 | 2 2 2 . 2 . Energy Gun . | . . . . . . Energy Cannon 2 | . . 1 . 1 . Ballistic Gun 2 | 2 . . . . . Ballistic Cannon 2 | . 2 . . . . Launcher . | . . . . . . Special Weapon 1 | . . . . 1 . Impact Weapon . | . . . . . . Slashing Weapon 1 | . . 1 . . . Piercing Weapon . | . . . . . . Special Melee Weapon . | . . . . . . Unidentified Prototypes 1 | . . . . 1 . Parts Lost 3 | . 2 1 . . . Power . | . . . . . . Propulsion 2 | . 1 1 . . . Utility 1 | . 1 . . . . Weapon . | . . . . . . Highest Loss Streak 2 | . 2 1 . . . To Critical Strikes . | . . . . . . Average Backups 8 | 3 7 7 9 10 6 Power . | . 1 . . . . Propulsion 2 | 1 2 1 2 3 . Utility 2 | . 2 3 3 2 5 Weapon 3 | . 1 2 3 4 1 Tool/Special . | . . . . . . Unused Backups 25 | . 4 2 5 10 4 Power . | . . . . . . Propulsion 4 | . 2 . . 2 . Utility 12 | . 1 1 4 2 4 Weapon 9 | . 1 1 1 6 . Tool/Special . | . . . . . . Average Slot Usage (%) 87 | . 99 98 85 81 64 Engine 7 | . 14 14 14 . . Core 5 | . . . . 13 6 Wheel 21 | . 27 27 28 17 . Flight 5 | . . . . 9 24 Device 8 | . 13 12 . 4 14 Storage 12 | . 14 13 14 11 2 Energy Cannon 10 | . . 13 14 11 6 Ballistic Cannon 2 | . 21 . . . . Slashing Weapon 9 | . . 13 14 11 . Peak Build Rating 62 | 9 10 14 14 35 62 Average Rating 18 | 6 7 12 12 20 52 On Entrance 13 | . 9 8 14 12 35 Naked Turns . | . . . . . . Heaviest Build 98 | 14 17 56 96 98 32 Greatest Support 33 | 26 26 30 26 32 33 Greatest Overweight (x) 8 | . . 2 3 8 . Average Overweight (x) . | . . . 2 1 . Largest Inventory Capacity 25 | 8 8 25 25 25 10 Average Capacity 14 | 7 8 9 24 18 7 Most Carried 20 | 7 8 13 14 20 8 Average Carried 10 | 3 7 8 10 12 6 Final Capacity 25 | 8 8 25 25 5 10 Final Carried 13 | 7 8 13 10 5 8 Class Distribution -------------------- 85% | Mutant 7% | Scavenger-Mutant 7% | Sprinter Dominant Class ---------------- Mutant | -10/Materials Mutant | -10/Subcaves Mutant | -9/Recycling Mutant | -9/Scraptown Sprinter | -6/Factory Resources | -11 -10 -10 -9 -9 -6 ----------- Run | Yrd Mat Sub Rec Scr Fac Matter Collected 1212 | 310 612 130 10 70 80 Remotely . | . . . . . . Salvage Created 922 | 99 425 192 206 . . Parts 61 | 7 27 16 11 . . Haulers Intercepted 1 | . 1 . . . . Recyclers Shooed . | . . . . . . Parts Field Recycled . | . . . . . . Retrieved Matter . | . . . . . . Parts Self-Destructed 11 | . . 11 . . . Prevented . | . . . . . . Kills | -11 -10 -10 -9 -9 -6 ------- Run | Yrd Mat Sub Rec Scr Fac Combat Hostiles Destroyed 21 | . 15 4 2 . . Melee 1 | . . . 1 . . Guns 3 | . 3 . . . . Cannons 17 | . 12 4 1 . . Classes Destroyed 8 | 2 5 1 . . . Tunneler 3 | 2 1 . . . . Hauler 1 | . 1 . . . . Recycler 2 | 1 . . 1 . . Operator 1 | . 1 . . . . Swarmer 6 | . 6 . . . . Grunt 6 | . 6 . . . . Sentry 3 | . . 1 2 . . Subdweller 6 | . 3 3 . . . Best Kill Streak 3 | 3 3 1 1 . . Combat Bots Only 3 | . 3 1 1 . . Max Kills in Single Turn 1 | 1 1 1 1 . . Gunslinging . | . . . . . . Exploded . | . . . . . . Melee 1 | . . . 1 . . Uniques/NPCs Destroyed . | . . . . . . Combat | -11 -10 -10 -9 -9 -6 -------- Run | Yrd Mat Sub Rec Scr Fac Hostile Shots Fired 133 | . 46 15 9 . 63 Missed 54 | . 10 3 3 . 38 Hits 79 | . 36 12 6 . 25 Projectile 79 | . 36 12 6 . 25 Critical Strikes 2 | . . 1 1 . . Damage Taken 1013 | . 412 230 84 . 287 Core 207 | . 80 44 27 . 56 Absorbed by Shields . | . . . . . . Regen/Repaired (Parts) 502 | . . . . 502 . Core Remaining (%) 69 | 100 . . . 39 . Volleys Fired 92 | 10 53 22 7 . . Largest 2 | 2 2 2 1 . . Hottest 80 | 40 60 80 80 . . Shots Fired 159 | 20 106 26 7 . . Gun 44 | 20 24 . . . . Cannon 115 | . 82 26 7 . . Launcher . | . . . . . . Special . | . . . . . . Kinetic 134 | 20 106 8 . . . Thermal 25 | . . 18 7 . . Explosive . | . . . . . . Electromagnetic . | . . . . . . Robot Hit Streak 14 | 2 14 3 5 . . Robot Miss Streak 3 | 2 3 2 2 . . Penetration Max . | . . . . . . Secondary Targets . | . . . . . . Shots Hit Robots 92 | 9 63 8 12 . . Core Hits 41 | 5 28 5 3 . . Critical Kills . | . . . . . . Critical Parts Destroyed . | . . . . . . Critical Strikes 6 | . 5 . 1 . . Blast 5 | . 5 . . . . Sever 1 | . . . 1 . . Melee Attacks 32 | . . 25 7 . . Impact . | . . . . . . Slashing 32 | . . 25 7 . . Piercing . | . . . . . . Sneak Attacks 3 | . . . 3 . . Combat Hostiles 1 | . . . 1 . . Follow-up Attacks . | . . . . . . Damage Inflicted 1740 | 101 957 212 470 . . Guns 286 | 101 185 . . . . Cannons 1122 | . 772 212 138 . . Explosions . | . . . . . . Melee 332 | . . . 332 . . Ramming . | . . . . . . Kinetic 1110 | 101 957 52 . . . Thermal 298 | . . 160 138 . . Explosive . | . . . . . . Electromagnetic . | . . . . . . Impact . | . . . . . . Slashing 332 | . . . 332 . . Piercing . | . . . . . . Highest Corruption 2 | . . . . . 2 Average Corruption 1 | . . . . . 1 Corruption Purged . | . . . . . . Corruption Blocked . | . . . . . . Overload Shots . | . . . . . . Overflow Damage 96 | . 12 . 84 . . Projectiles 12 | . 12 . . . . Explosions . | . . . . . . Melee 84 | . . . 84 . . Knockbacks 15 | . 14 1 . . . Impact . | . . . . . . Kinetic 13 | . 12 1 . . . Secondary 2 | . 2 . . . . Self-Inflicted Damage . | . . . . . . Shots . | . . . . . . Rammed . | . . . . . . Targets Rammed . | . . . . . . Kicked . | . . . . . . Crushed . | . . . . . . Highest Temperature 160 | . 44 36 160 . 9 Average Temperature 27 | . 19 31 71 . 5 Received Heat Transfer 291 | . 132 72 45 . 42 Siege Activations . | . . . . . . Martial Activations . | . . . . . . Shielding Activations . | . . . . . . Robots Disrupted . | . . . . . . Combat Hostiles . | . . . . . . Robots Corrupted . | . . . . . . Combat Hostiles . | . . . . . . Parts Fried . | . . . . . . Impact Corruptions . | . . . . . . Robots Melted . | . . . . . . Combat Hostiles . | . . . . . . Parts Melted . | . . . . . . Heat Transferred 407 | . . 222 185 . . Parts Sabotaged . | . . . . . . Parts Stolen . | . . . . . . Parts Stripped . | . . . . . . Power Chain Reactions . | . . . . . . Alert | -11 -10 -10 -9 -9 -6 ------- Run | Yrd Mat Sub Rec Scr Fac Maximum Alert Level . | . . . . . . Low Security (%) 100 | 100 100 . 100 . 100 Level 1 . | . . . . . . Level 2 . | . . . . . . Level 3 . | . . . . . . Level 4 . | . . . . . . Level 5 . | . . . . . . High Security . | . . . . . . Max Security . | . . . . . . Peak Influence 127 | 5 127 . 20 . 65 Initial . | . . . . . . Average 15 | . 35 . . . 7 Influence Increases 607 | 15 422 20 60 . 90 Destroy 0b10 Robot/C 300 | . 240 20 40 . . Destroy 0b10 Robot/NC 35 | 15 15 . 5 . . Destroy Leader 42 | . 42 . . . . Successful Hack 29 | . 16 . 13 . . Disable Machine 30 | . 30 . . . . Destroy Structure 6 | . 4 . 2 . . Partial Spotted 15 | . . . . . 15 Lose Combat Pursuer 150 | . 75 . . . 75 Influence Decreases 607 | 15 404 38 60 . 90 Entered New Map 10 | . . 10 . . . Time Decay 502 | 15 309 28 60 . 90 Lost Part 20 | . 20 . . . . Purge Threat 75 | . 75 . . . . Squads Dispatched 4 | . 3 . . . 1 Investigation 2 | . 2 . . . . Extermination 1 | . . . . . 1 Reinforcement 1 | . 1 . . . . Assault . | . . . . . . Garrison . | . . . . . . Intercept . | . . . . . . Searches Triggered . | . . . . . . Construction Impeded . | . . . . . . Haulers Reinforced . | . . . . . . Active Scanning Responses . | . . . . . . Cargo Convoy Interrupts . | . . . . . . Stealth | -11 -10 -10 -9 -9 -6 --------- Run | Yrd Mat Sub Rec Scr Fac Distress Signals . | . . . . . . Communications Jammed . | . . . . . . Distress Signals . | . . . . . . Times Spotted 45 | . 33 4 2 . 6 Peak Tracking Total 5 | . 4 1 1 . 5 Tactical Retreats 9 | . 7 . . . 2 Traps | -11 -10 -10 -9 -9 -6 ------- Run | Yrd Mat Sub Rec Scr Fac Traps Triggered 1 | . 1 . . . . Indirectly . | . . . . . . Trap Hack Attempts . | . . . . . . Triggered . | . . . . . . Disarmed . | . . . . . . Reprogrammed . | . . . . . . Reused . | . . . . . . Traps Extracted . | . . . . . . Installed . | . . . . . . Triggered . | . . . . . . Most Traps Carried 3 | . . . . 3 . Machines | -11 -10 -10 -9 -9 -6 ---------- Run | Yrd Mat Sub Rec Scr Fac Machines Disabled 3 | . 2 1 . . . Max in Single Turn 1 | . 1 1 . . . Machines Repaired . | . . . . . . Machines Dismantled . | . . . . . . Machines Sabotaged . | . . . . . . Overloaded Fab Kills . | . . . . . . Hacking | -11 -10 -10 -9 -9 -6 --------- Run | Yrd Mat Sub Rec Scr Fac Machines Accessed 24 | . 7 2 8 5 2 Terminals 15 | . 7 . 6 . 2 Fabricators . | . . . . . . Repair Stations . | . . . . . . Recycling Units 2 | . . . 2 . . Scanalyzers . | . . . . . . Garrison Access . | . . . . . . Total Hacks 97 | . 23 5 16 48 5 Successful 79 | . 13 5 11 48 2 Failed 18 | . 10 . 5 . 3 Catastrophic 4 | . 1 . 1 . 2 Database Lockouts . | . . . . . . Manual 24 | . 9 . 12 . 3 Terminals 40 | . 23 . 12 . 5 Fabricators . | . . . . . . Repair Stations . | . . . . . . Recycling Units 4 | . . . 4 . . Scanalyzers . | . . . . . . Garrison Access . | . . . . . . Terminal Hacks 63 | . 9 5 . 48 1 Record 51 | . . 4 . 47 . Prototype ID Bank 2 | . 1 . . . 1 Branch Access Points 1 | . 1 . . . . Emergency Access Points 1 | . 1 . . . . Alert Level 2 | . 2 . . . . Unreport Threat 1 | . 1 . . . . Locate Traps 1 | . 1 . . . . Registered Components 1 | . 1 . . . . Zone Layout 1 | . 1 . . . . Proto ID Catalog 2 | . . 1 . 1 . Fabricator Hacks . | . . . . . . Repair Station Hacks . | . . . . . . Recycling Unit Hacks 2 | . . . 2 . . Retrieve Matter 1 | . . . 1 . . Retrieve Components 1 | . . . 1 . . Scanalyzer . | . . . . . . Garrison Access Hacks . | . . . . . . Unauthorized Hacks 14 | . 4 . 9 . 1 Terminals 14 | . 4 . 9 . 1 Botnet 8 | . 4 . 4 . . Skim 6 | . . . 5 . 1 Fabricators . | . . . . . . Repair Stations . | . . . . . . Recycling Units . | . . . . . . Scanalyzers . | . . . . . . Garrison Access . | . . . . . . Data Cores Recovered . | . . . . . . Used . | . . . . . . Hacking Detections 12 | . 5 . 5 . 2 Full Trace Events 1 | . . . 1 . . Feedback Events . | . . . . . . Feedback Blocked . | . . . . . . Robot Schematics Acquired . | . . . . . . Robots Built . | . . . . . . Authchips . | . . . . . . Time . | . . . . . . Total Robot Build Rating . | . . . . . . Part Schematics Acquired . | . . . . . . Parts Built . | . . . . . . Authchips . | . . . . . . Time . | . . . . . . Total Part Build Rating . | . . . . . . Parts Repaired . | . . . . . . Time . | . . . . . . Parts Recycled . | . . . . . . Recycled Matter . | . . . . . . Retrieved Matter . | . . . . . . Retrieved Components 3 | . . . 3 . . Parts Scanalyzed . | . . . . . . Part Schematics Acquired . | . . . . . . Parts Damaged . | . . . . . . Bothacking | -11 -10 -10 -9 -9 -6 ------------ Run | Yrd Mat Sub Rec Scr Fac Used RIF Installer . | . . . . . . Robots Hacked . | . . . . . . Non-combat . | . . . . . . Combat . | . . . . . . Robot Hacks Applied . | . . . . . . Relay Couplers Released . | . . . . . . Fabnet Peak Effective % . | . . . . . . Robots Rewired . | . . . . . . Allies Hacked . | . . . . . . Hacks Repelled . | . . . . . . Allies | -11 -10 -10 -9 -9 -6 -------- Run | Yrd Mat Sub Rec Scr Fac Total Allies . | . . . . . . Largest Group . | . . . . . . Highest-Rated Group . | . . . . . . Highest-Rated Ally . | . . . . . . Total Orders . | . . . . . . Ally Attacks . | . . . . . . Total Damage . | . . . . . . Kills . | . . . . . . Allies Corrupted . | . . . . . . Allies Melted . | . . . . . . Intel | -11 -10 -10 -9 -9 -6 ------- Run | Yrd Mat Sub Rec Scr Fac Active Infowar (turns) 3976 | 30 1029 1945 . 337 635 Terrain 449 | 30 419 . . . . Structural 972 | . . . . 337 635 Seismic 2555 | . 610 1945 . . . Robot Analysis Total . | . . . . . . Derelict Logs Recovered 2 | . . . . 2 . Drone Launches . | . . . . . . Drone Recoveries . | . . . . . . Exploration | -11 -10 -10 -9 -9 -6 ------------- Run | Yrd Mat Sub Rec Scr Fac Turns Passed 8372 | 116 1047 2119 1048 3407 635 Spaces Moved 8003 | 81 931 2108 760 3742 381 Core 10 | 5 . . . 5 . Treads . | . . . . . . Legs . | . . . . . . Wheels 5376 | 76 931 2108 760 1501 . Hover . | . . . . . . Flight 2617 | . . . . 2236 381 Fastest Speed 31 | 50 80 90 90 37 31 Average Speed 90 | 87 85 93 130 87 31 Slowest Speed 677 | 100 90 120 135 677 37 Overloaded Moves . | . . . . . . Propulsion Burnouts . | . . . . . . Robots Hopped 4 | . . . . . 4 Potential Cave-ins . | . . . . . . Cave-ins Triggered . | . . . . . . Exploration Rate (%) 56 | 5 99 38 98 88 11 Regions Visited 5 Branch Regions 3 Pre-discovered Areas 8 | . . . 3 5 . Known Exits Taken 1 | . . . . 1 . Unknown Exits Taken 4 | 1 1 1 1 . . Scrap Searched 12 | . . 6 . 6 . Spaces Dug 17 | . . 17 . . . Terrain Destroyed 19 | . . 18 1 . . Melee 15 | . . 15 . . . Projectile 4 | . . 3 1 . . AOE . | . . . . . . Terrain Rammed . | . . . . . . Walls Destroyed . | . . . . . . Machines Disabled . | . . . . . . Actions | -11 -10 -10 -9 -9 -6 --------- Run | Yrd Mat Sub Rec Scr Fac Total 8958 | 104 1078 2195 801 3890 890 Wait 703 | . 74 11 20 102 496 Move 7990 | 80 930 2107 759 3741 373 Hop 4 | . . . . . 4 Pick Up 55 | 7 7 13 6 18 4 Fast Attach 22 | 7 2 3 1 5 4 Attach 11 | . 2 2 . 2 5 Detach 7 | . . . . 3 4 Swap 10 | . 2 2 . 6 . Drop 32 | . 8 10 1 13 . Fire 92 | 10 53 22 7 . . Melee 32 | . . 25 7 . . Ram . | . . . . . . Kick . | . . . . . . Crush . | . . . . . . Escape Stasis . | . . . . . . Rewire . | . . . . . . Trap . | . . . . . . Miscellaneous . | . . . . . . Route ------- -11/Scrapyard -10/Materials (discovered 6 exits: [*Mat x3] / *Min x2 / *Sub) -10/Subcaves -9/Recycling (discovered 2 exits: [*Fac] / *Scr) -9/Scraptown (discovered 2 exits: *Fac x2) -6/Factory (discovered 3 exits: Fac / Low x2) History --------- Turn | Location | Event 21 | -11/Scrapyard | Discovered new exit (range 15) 117 | -11/Scrapyard | Entered Materials 271 | -10/Materials | Discovered new exit (range 11) 302 | -10/Materials | Build established: Mutant 380 | -10/Materials | Discovered new exit (range 12) 434 | -10/Materials | Discovered new exit (range 4) 494 | -10/Materials | Discovered new exit (range 15) 664 | -10/Materials | Identified exit to Mines 675 | -10/Materials | Discovered new exit (range 15) 817 | -10/Materials | Derelicts attacked the area 1156 | -10/Materials | Discovered new exit (range 7) 1164 | -10/Materials | Entered Subcaves 1165 | -10/Subcaves | Approached by a straggling Scientist 1266 | -10/Subcaves | Visited Clippyterm 1274 | -10/Subcaves | Learned Factory garrison access intel 1648 | -10/Subcaves | A swath of the cavern ceiling suddenly collapsed 1985 | -10/Subcaves | Visited 4L-MR0's lab 2095 | -10/Subcaves | Discovered new exit (range 12) 2240 | -10/Subcaves | Found Powered Cannon 2337 | -10/Subcaves | Build established: Scavenger-Mutant 2984 | -10/Subcaves | Build established: Mutant 3283 | -10/Subcaves | Entered Recycling 3430 | -9/Recycling | Core integrity fell below 50% 4027 | -9/Recycling | Discovered new exit (range 12) 4070 | -9/Recycling | Learned Materials stockpile data 4098 | -9/Recycling | Learned Materials security intel 4118 | -9/Recycling | Learned location of Zion (-6) 4130 | -9/Recycling | Learned Materials repair station intel 4132 | -9/Recycling | Learned location of Storage (-9) 4133 | -9/Recycling | Learned Materials stockpile data 4135 | -9/Recycling | Learned Materials trap positions 4145 | -9/Recycling | Learned Materials emergency access door positions 4221 | -9/Recycling | Scanned before Scraplab entrance 4298 | -9/Recycling | Entered Scraplab 4327 | -9/Recycling | Discovered new exit (range 3) 4331 | -9/Recycling | Entered Scraptown 4589 | -9/Scraptown | Visited Assassins FH 4605 | -9/Scraptown | Visited Spacefarers 4658 | -9/Scraptown | Learned location of Extension (-4) 4935 | -9/Scraptown | Discovered new exit (range 11) 5011 | -9/Scraptown | Scanned Subdweller tech in exchange for log data 5016 | -9/Scraptown | Learned location of 1 exit from Factory 5065 | -9/Scraptown | Visited SPCMW 5081 | -9/Scraptown | Visited Red Mages 5118 | -9/Scraptown | Visited IN-MT5's Study 5127 | -9/Scraptown | Visited CR-KLE's Repair Center 5139 | -9/Scraptown | CR-KLE repaired 6 parts 5224 | -9/Scraptown | Visited Cyclists 5257 | -9/Scraptown | Visited UFD Registry 5353 | -9/Scraptown | Registered with UFD as "Shadowhead" 5401 | -9/Scraptown | Visited Botcube Research 5424 | -9/Scraptown | Visited Science Guys 5502 | -9/Scraptown | Visited Chapter 10 5529 | -9/Scraptown | Visited Curators Association 5605 | -9/Scraptown | Visited Scrap Suit Storage 5633 | -9/Scraptown | Visited Scrapoid Pod Storage 5662 | -9/Scraptown | Visited Science Testing Area 5717 | -9/Scraptown | Visited Cartography Club 5798 | -9/Scraptown | Visited Junk Cannon Lab 5856 | -9/Scraptown | Found Prototype Special Weapon 6883 | -9/Scraptown | Found Surveybot 17 Chip 6912 | -9/Scraptown | Learned location of Warlord (-4) 6912 | -9/Scraptown | Learned location of Cetus (-4) 6912 | -9/Scraptown | Learned 12 Materials zone layouts 6912 | -9/Scraptown | Learned 16 Materials zone layouts 6912 | -9/Scraptown | Learned 8 Research zone layouts 6912 | -9/Scraptown | Learned 12 Research zone layouts 6912 | -9/Scraptown | Learned 4 Access zone layouts 6912 | -9/Scraptown | Learned 4 Recycling zone layouts 6912 | -9/Scraptown | Learned 20 Lower Caves zone layouts 6912 | -9/Scraptown | Learned 12 Proximity Caves zone layouts 6912 | -9/Scraptown | Learned 4 Hub_04(d) zone layouts 6912 | -9/Scraptown | Learned 4 Armory zone layouts 6912 | -9/Scraptown | Learned location of 2 exits from Lower Caves 6912 | -9/Scraptown | Learned location of 1 exit from Proximity Caves 6912 | -9/Scraptown | Learned location of 2 exits from Proximity Caves 6912 | -9/Scraptown | Identified exit to Factory 6958 | -9/Scraptown | Found Deep Structural Scanner 7079 | -9/Scraptown | Identified Junk Cannon 7084 | -9/Scraptown | Attached Powered Cannon, gained temporary slot: Power 7738 | -9/Scraptown | Entered Factory 7738 | -6/Factory | Evolved 8 slots: Power x1, Propulsion x2, Utility x5 7739 | -6/Factory | Identified exit to Lower Caves 7740 | -6/Factory | Identified exit to Factory 7741 | -6/Factory | Loaded intel: 4 garrison access locations 8082 | -6/Factory | Build established: Sprinter 8373 | -6/Factory | Self-destructed Last Messages --------------- 08036_ Acquired Energy Well. 08045_ Acquired Imp. Cooling System. 08053_ Connecting with Terminal... 08061_ Acquired Prototype Device. 08214_ ALERT: Security rotation in progress. 08286_ Acquired Imp. Hacking Suite. 08297_ Connecting with Terminal... >>Trojan(Skim) Trojan loaded successfully. Testing... Terminal linked with 0 systems. Please expand to 4 more systems! >>Prototypes Downloading prototype IDs... Cld. VTOL Module Scatter Rocket Array 08302_ ALERT: Potential suspicious activity detected, Programmers report to Factory Zone 2X. 08365_ Construction Platform disabled. Map ----- +----------------------------------------------------+ | | | | | | | | | ####################################????????? | | # ####????????? | | """ """ # """ """ """ """ ####????????? | | """" """"" # "T" """ """ """ ####????????? | | """" """"" # """ """ """ ####????????? | | # ####????????? | | """ # = ####????????? | | "T"" """"" # ####????????? | | """" """"" #########+############????????? | | ##### ########????????? | | ##+######+######### ########????????? | | # ########????????? | | # ####????????????? | | """" # ####????????????? | | """" + #########???????? | | """" # """"""" """"""" ################? | | """" # """"""" """"""" ################? | | # """"""" """"""" ################? | | ! # """"""" "" """" ##### ###########? | | +###### p # ####? | | ##### """"""" """"""" # [ ####? | | +#####T """"""" """""""@ # !!! ####? | | ## """"""" """"""" + !!! ####? | | ?? ## """"""" """"""" # !!! """ ####? | | ?? ## # """ ####? | | ?? # "??"""" """"""" # """ ####? | | ???### "??"""" """"""" # ####? | | ??? # """"""" """"""" # """ """ ####? | | ??????? """"""" """"""" # """ """ ####? | | ??????? # """ """ ####? | | ?????? # ####? | | ?????? #################? | | ?????? ##############???? | | ?????? ####################???? | | ?????? ^ ####################???? | | ??????? ##########?????????????? | | ??????? ######### ##########?????????????? | | ??? #########+##?????????????????????? | | ?? ######## ? ???????????????????? | | ?? ######## " ? ####?????????? | | ### ?????????#### """ ?? ####?????????? | | # ?????????#### G ?? ####?????????? | | " + ######## """ !? ####?????????? | | " # + " ####?????????? | | " # ######## ####?????????? | | " ######+########## """"""" ####?????????? | +----------------------------------------------------+ Best States ------------- Heat Dissipation 37 Energy Generation 14 Energy Capacity 250 Matter Stores 300 Matter Capacity 300 Sight Range 16 Terrain Scan Range 16 Terrain Scan Density 10 Additional Mass Support 9 Armor Coverage 250 Resistance: KI 20 Evasion (%) 63 Offensive Hacking 12 Item Schematics ----------------- None Robot Schematics ------------------ None Fabricated ------------ Nothing Repaired ---------- Nothing Alien Tech Used ----------------- None Achievements -------------- None Challenges ------------ None Game ------ Seed DirtyFactoryMount Manual? 0 Play Time 01:13:59 Cumulative 43.9 hours Start 2025.05.13 @ 00:44:41 End 2025.05.13 @ 03:10:01 Sessions 3 Manual Loads 0 Difficulty Rogue Special Mode None Game No. 72 Rogue 72 Adventurer 0 Explorer 0 Win Type - Total 0 Types 0/0/0/0/0/0/0/0/0/0 Lore% 39 Gallery% 29 Achievement% 29 Wizard Run 0 Options --------- Layout 2 ASCII 0 Keyboard 1 Movement Arrows Keybinds 0 Fullscreen 2 Font 32/SmallcapsGlow Map View 50x44 Zoom Use 0% Tactical HUD 1 Map Filters NONE Filters NONE Steam 1 RUN: 68e5e6af-e6d4-428c-a3d2-a64233e39b7a